[Event "Early-Titled-Tuesday-Blitz-November-28-2023"]
[Site "Chess.com"]
[Date "2023.11.28"]
[Round "5"]
[White "BigAl"]
[Black "Arimin1329"]
[Result "0-1"]
[WhiteElo "2542"]
[BlackElo "2397"]
[TimeControl "180+1"]
[EndTime "8:59:00 PST"]
[Termination "Arimin1329 won on time"]

1. Nf3 {[%clk 0:02:29.9]} 1... Nf6 {[%clk 0:02:57.9]} 2. g3 {[%clk 0:02:30.2]}
2... b5 {[%clk 0:02:57.8]} 3. Bg2 {[%clk 0:02:30.7]} 3... Bb7 {[%clk 0:02:58.4]}
4. O-O {[%clk 0:02:31.3]} 4... e6 {[%clk 0:02:56]} 5. d3 {[%clk 0:02:31.7]} 5...
Be7 {[%clk 0:02:56.1]} 6. e4 {[%clk 0:02:30.7]} 6... d5 {[%clk 0:02:54.4]} 7.
exd5 {[%clk 0:02:23.8]} 7... Nxd5 {[%clk 0:02:51.9]} 8. a4 {[%clk 0:02:23.7]}
8... a6 {[%clk 0:02:51.5]} 9. Nbd2 {[%clk 0:02:20.4]} 9... Nd7 {[%clk
0:02:48.6]} 10. Re1 {[%clk 0:02:18.6]} 10... O-O {[%clk 0:02:46]} 11. c3 {[%clk
0:02:16.4]} 11... c5 {[%clk 0:02:46.2]} 12. h4 {[%clk 0:02:09.3]} 12... Rc8
{[%clk 0:02:43.7]} 13. axb5 {[%clk 0:02:08.2]} 13... axb5 {[%clk 0:02:42.9]} 14.
Qb3 {[%clk 0:02:00]} 14... Qb6 {[%clk 0:02:37.5]} 15. Ne4 {[%clk 0:01:57.2]}
15... N7f6 {[%clk 0:02:30.2]} 16. Ne5 {[%clk 0:01:54.9]} 16... Nxe4 {[%clk
0:02:18.6]} 17. dxe4 {[%clk 0:01:54.3]} 17... Nf6 {[%clk 0:02:17.7]} 18. Bf4
{[%clk 0:01:47.7]} 18... Rfd8 {[%clk 0:02:11.2]} 19. Rad1 {[%clk 0:01:46.4]}
19... Rxd1 {[%clk 0:02:06.5]} 20. Qxd1 {[%clk 0:01:46.2]} 20... Rd8 {[%clk
0:02:06.8]} 21. Qc2 {[%clk 0:01:46.3]} 21... h6 {[%clk 0:02:01.4]} 22. f3 {[%clk
0:01:35.5]} 22... Nh5 {[%clk 0:01:47.6]} 23. Kh2 {[%clk 0:01:30.1]} 23... Nxf4
{[%clk 0:01:44.6]} 24. gxf4 {[%clk 0:01:30.2]} 24... Bxh4 {[%clk 0:01:42.3]} 25.
Rg1 {[%clk 0:01:30.7]} 25... Bf6 {[%clk 0:01:40.5]} 26. Ng4 {[%clk 0:01:29]}
26... Be7 {[%clk 0:01:37.5]} 27. Bf1 {[%clk 0:01:20.6]} 27... Kh8 {[%clk
0:01:34.9]} 28. Ne5 {[%clk 0:01:18.7]} 28... Kg8 {[%clk 0:01:26.5]} 29. Ng4
{[%clk 0:01:17.5]} 29... Kf8 {[%clk 0:01:26.8]} 30. e5 {[%clk 0:01:05.7]} 30...
Ke8 {[%clk 0:01:26.6]} 31. Rg3 {[%clk 0:01:00.5]} 31... c4 {[%clk 0:01:21.6]}
32. Bg2 {[%clk 0:00:57.7]} 32... h5 {[%clk 0:01:04.9]} 33. Nf2 {[%clk 0:00:56]}
33... Bh4 {[%clk 0:01:05.1]} 34. Qh7 {[%clk 0:00:52.3]} 34... Bxg3+ {[%clk
0:00:40.9]} 35. Kxg3 {[%clk 0:00:52.2]} 35... g6 {[%clk 0:00:41.4]} 36. Qh8+
{[%clk 0:00:48.7]} 36... Kd7 {[%clk 0:00:41.4]} 37. Qf6 {[%clk 0:00:48.8]} 37...
Rf8 {[%clk 0:00:37.5]} 38. Bh3 {[%clk 0:00:45.1]} 38... Qd8 {[%clk 0:00:36.7]}
39. Qg7 {[%clk 0:00:40.3]} 39... Qe8 {[%clk 0:00:36.5]} 40. Ne4 {[%clk
0:00:27.3]} 40... Bxe4 {[%clk 0:00:35.8]} 41. fxe4 {[%clk 0:00:28.2]} 41... Qe7
{[%clk 0:00:30.3]} 42. Qh6 {[%clk 0:00:23.3]} 42... Ra8 {[%clk 0:00:29]} 43. f5
{[%clk 0:00:22.8]} 43... exf5 {[%clk 0:00:28.2]} 44. exf5 {[%clk 0:00:22.7]}
44... Qxe5+ {[%clk 0:00:28.6]} 45. Kg2 {[%clk 0:00:21]} 45... Qe2+ {[%clk
0:00:27.7]} 46. Kg3 {[%clk 0:00:21.1]} 46... Qd3+ {[%clk 0:00:27.6]} 47. Kg2
{[%clk 0:00:21]} 47... Ra2 {[%clk 0:00:16.7]} 48. fxg6+ {[%clk 0:00:19.5]} 48...
Kc7 {[%clk 0:00:17.3]} 49. Qf4+ {[%clk 0:00:18.1]} 49... Kb7 {[%clk 0:00:16.1]}
50. Qxf7+ {[%clk 0:00:18]} 50... Ka6 {[%clk 0:00:16.1]} 51. Bc8+ {[%clk
0:00:17]} 51... Kb6 {[%clk 0:00:14.8]} 52. Qb7+ {[%clk 0:00:16.6]} 52... Kc5
{[%clk 0:00:15.3]} 53. Qc7+ {[%clk 0:00:16.9]} 53... Kd5 {[%clk 0:00:15.6]} 54.
Bb7+ {[%clk 0:00:16.6]} 54... Ke6 {[%clk 0:00:15.8]} 55. Bc8+ {[%clk 0:00:16.7]}
55... Kf6 {[%clk 0:00:15.8]} 56. Qf7+ {[%clk 0:00:16.7]} 56... Kg5 {[%clk
0:00:15.8]} 57. Qe7+ {[%clk 0:00:16.4]} 57... Kxg6 {[%clk 0:00:14.2]} 58. Qe6+
{[%clk 0:00:16.5]} 58... Kg5 {[%clk 0:00:14.4]} 59. Qe5+ {[%clk 0:00:16.8]}
59... Kg6 {[%clk 0:00:13]} 60. Qe6+ {[%clk 0:00:16.1]} 60... Kg5 {[%clk
0:00:12.9]} 61. Qe5+ {[%clk 0:00:16.2]} 61... Kh6 {[%clk 0:00:12.2]} 62. Qf6+
{[%clk 0:00:15.9]} 62... Qg6+ {[%clk 0:00:12.5]} 63. Qxg6+ {[%clk 0:00:15.6]}
63... Kxg6 {[%clk 0:00:13.4]} 64. Kf3 {[%clk 0:00:16.1]} 64... Rxb2 {[%clk
0:00:13.9]} 65. Ke4 {[%clk 0:00:17]} 65... Rb3 {[%clk 0:00:14.4]} 66. Kd4 {[%clk
0:00:17.9]} 66... Kg5 {[%clk 0:00:14.5]} 67. Be6 {[%clk 0:00:17.5]} 67... Kh4
{[%clk 0:00:14.9]} 0-1

[Event "Early-Titled-Tuesday-Blitz-November-28-2023"]
[Site "Chess.com"]
[Date "2023.11.28"]
[Round "5"]
[White "bubeliang"]
[Black "vovachesss"]
[Result "0-1"]
[WhiteElo "2638"]
[BlackElo "2861"]
[TimeControl "180+1"]
[EndTime "8:59:02 PST"]
[Termination "vovachesss won by checkmate"]

1. e4 {[%clk 0:03:00.9]} 1... e5 {[%clk 0:02:58.9]} 2. Nc3 {[%clk 0:03:00.6]}
2... Bc5 {[%clk 0:02:57.6]} 3. Bc4 {[%clk 0:03:00.6]} 3... d6 {[%clk 0:02:57.7]}
4. Nge2 {[%clk 0:02:59.5]} 4... Ne7 {[%clk 0:02:57.2]} 5. O-O {[%clk 0:02:59.1]}
5... O-O {[%clk 0:02:57.9]} 6. d3 {[%clk 0:02:58.6]} 6... Be6 {[%clk 0:02:58.1]}
7. Bxe6 {[%clk 0:02:58.4]} 7... fxe6 {[%clk 0:02:59]} 8. Be3 {[%clk 0:02:58.9]}
8... Nd7 {[%clk 0:02:54.8]} 9. Ng3 {[%clk 0:02:57.6]} 9... Ng6 {[%clk 0:02:54]}
10. Nce2 {[%clk 0:02:52.9]} 10... Qh4 {[%clk 0:02:49]} 11. Qd2 {[%clk
0:02:47.7]} 11... Nf4 {[%clk 0:02:44.2]} 12. d4 {[%clk 0:02:42.8]} 12... Nxe2+
{[%clk 0:02:37.7]} 13. Nxe2 {[%clk 0:02:40.2]} 13... exd4 {[%clk 0:02:38.1]} 14.
Bxd4 {[%clk 0:02:40]} 14... Qxe4 {[%clk 0:02:37.1]} 15. Bc3 {[%clk 0:02:35.8]}
15... e5 {[%clk 0:02:32.4]} 16. Ng3 {[%clk 0:02:33.5]} 16... Qc4 {[%clk
0:02:17.2]} 17. Kh1 {[%clk 0:02:28.6]} 17... Rf4 {[%clk 0:02:11.4]} 18. f3
{[%clk 0:02:26.2]} 18... Raf8 {[%clk 0:02:06.6]} 19. Rae1 {[%clk 0:02:16]} 19...
Bb6 {[%clk 0:01:52.4]} 20. Ne4 {[%clk 0:02:10.9]} 20... Rxe4 {[%clk 0:01:42.5]}
21. b3 {[%clk 0:02:00]} 21... Rxe1 {[%clk 0:01:41]} 22. Qxe1 {[%clk 0:01:26.4]}
22... Qf7 {[%clk 0:01:37.7]} 23. Qg3 {[%clk 0:01:27.3]} 23... Nf6 {[%clk
0:01:36.8]} 24. Bd2 {[%clk 0:01:24.7]} 24... Ne4 {[%clk 0:01:33.5]} 25. Qh3
{[%clk 0:01:25.6]} 25... Nxd2 {[%clk 0:01:32]} 26. Rd1 {[%clk 0:01:23.9]} 26...
Be3 {[%clk 0:01:28.7]} 27. c4 {[%clk 0:01:20.9]} 27... e4 {[%clk 0:01:25.2]} 28.
Re1 {[%clk 0:01:07.5]} 28... exf3 {[%clk 0:01:20.6]} 29. Rxe3 {[%clk 0:01:00.3]}
29... f2 {[%clk 0:01:18.5]} 30. Qxh7+ {[%clk 0:00:57.4]} 30... Kxh7 {[%clk
0:01:17.9]} 31. Rh3+ {[%clk 0:00:58.3]} 31... Kg8 {[%clk 0:01:18.3]} 32. Rh8+
{[%clk 0:00:59.2]} 32... Kxh8 {[%clk 0:01:18.4]} 33. h3 {[%clk 0:01:00.1]} 33...
Qf5 {[%clk 0:01:11]} 34. Kh2 {[%clk 0:00:57.5]} 34... Qb1 {[%clk 0:01:11.6]} 35.
Kg3 {[%clk 0:00:55.7]} 35... Qxa2 {[%clk 0:01:11]} 36. Kh2 {[%clk 0:00:55.2]}
36... Qxb3 {[%clk 0:01:11]} 37. Kh1 {[%clk 0:00:55.5]} 37... Qxc4 {[%clk
0:01:11.4]} 38. Kh2 {[%clk 0:00:56.4]} 38... a5 {[%clk 0:00:51.2]} 39. Kh1
{[%clk 0:00:57.3]} 39... a4 {[%clk 0:00:51.5]} 40. Kh2 {[%clk 0:00:58.2]} 40...
a3 {[%clk 0:00:52.4]} 41. Kh1 {[%clk 0:00:59.1]} 41... a2 {[%clk 0:00:53]} 42.
Kh2 {[%clk 0:01:00]} 42... a1=N {[%clk 0:00:53.1]} 43. Kh1 {[%clk 0:01:00.9]}
43... b5 {[%clk 0:00:53.6]} 44. Kh2 {[%clk 0:01:01.8]} 44... b4 {[%clk
0:00:54.5]} 45. Kh1 {[%clk 0:01:02.7]} 45... b3 {[%clk 0:00:55.3]} 46. Kh2
{[%clk 0:01:03.6]} 46... b2 {[%clk 0:00:56]} 47. Kh1 {[%clk 0:01:04.5]} 47...
b1=N {[%clk 0:00:56.7]} 48. Kh2 {[%clk 0:01:05.4]} 48... Qe2 {[%clk 0:00:57.3]}
49. Kh1 {[%clk 0:01:06.3]} 49... c5 {[%clk 0:00:58.1]} 50. Kh2 {[%clk
0:01:07.2]} 50... c4 {[%clk 0:00:59]} 51. Kh1 {[%clk 0:01:08.1]} 51... c3 {[%clk
0:00:59.9]} 52. Kh2 {[%clk 0:01:09]} 52... c2 {[%clk 0:01:00.8]} 53. Kh1 {[%clk
0:01:09.9]} 53... c1=N {[%clk 0:01:01.1]} 54. Kh2 {[%clk 0:01:10.8]} 54... Ne4
{[%clk 0:01:01.2]} 55. Kh1 {[%clk 0:01:11.7]} 55... d5 {[%clk 0:01:02.1]} 56. h4
{[%clk 0:01:12.6]} 56... d4 {[%clk 0:01:03]} 57. h5 {[%clk 0:01:13.5]} 57... d3
{[%clk 0:01:03.9]} 58. h6 {[%clk 0:01:14.4]} 58... d2 {[%clk 0:01:04.8]} 59.
hxg7+ {[%clk 0:01:15.3]} 59... Kxg7 {[%clk 0:01:05]} 60. Kh2 {[%clk 0:01:16.2]}
60... d1=N {[%clk 0:01:05]} 61. Kh1 {[%clk 0:01:17.1]} 61... f1=N {[%clk
0:01:00.2]} 62. Kg1 {[%clk 0:00:47.4]} 62... Nc5 {[%clk 0:01:01.1]} 63. Kh1
{[%clk 0:00:47.7]} 63... N5d3 {[%clk 0:01:02]} 64. Kg1 {[%clk 0:00:48.6]} 64...
Ne1 {[%clk 0:01:02.9]} 65. Kh1 {[%clk 0:00:49.5]} 65... Kf6 {[%clk 0:00:41.9]}
66. Kg1 {[%clk 0:00:49.1]} 66... Rh8 {[%clk 0:00:41.2]} 67. g4 {[%clk
0:00:10.1]} 67... Rg8 {[%clk 0:00:42.1]} 68. Kh1 {[%clk 0:00:10.3]} 68... Rg5
{[%clk 0:00:39.5]} 69. Kg1 {[%clk 0:00:04.5]} 69... Ke5 {[%clk 0:00:38.6]} 70.
Kh1 {[%clk 0:00:05]} 70... Kf4 {[%clk 0:00:39.4]} 71. Kg1 {[%clk 0:00:05.9]}
71... Kg3 {[%clk 0:00:40.3]} 72. Kh1 {[%clk 0:00:06.8]} 72... Rxg4 {[%clk
0:00:40.1]} 73. Kg1 {[%clk 0:00:07.7]} 73... Ncd3 {[%clk 0:00:37.7]} 74. Kh1
{[%clk 0:00:08]} 74... Nbc3 {[%clk 0:00:38.6]} 75. Kg1 {[%clk 0:00:08.9]} 75...
Nb3 {[%clk 0:00:39.5]} 76. Kh1 {[%clk 0:00:09.7]} 76... Nd4 {[%clk 0:00:40.4]}
77. Kg1 {[%clk 0:00:10.6]} 77... Ne4 {[%clk 0:00:40.6]} 78. Kh1 {[%clk
0:00:11.5]} 78... Nde3 {[%clk 0:00:40.5]} 79. Kg1 {[%clk 0:00:12.4]} 79... Ned2
{[%clk 0:00:38.6]} 80. Kh1 {[%clk 0:00:13.3]} 80... Nf2+ {[%clk 0:00:36.3]} 81.
Kg1 {[%clk 0:00:14.2]} 81... N4f3# {[%clk 0:00:35.9]} 0-1

[Event "Early-Titled-Tuesday-Blitz-November-28-2023"]
[Site "Chess.com"]
[Date "2023.11.28"]
[Round "5"]
[White "mbojan"]
[Black "Azerichess"]
[Result "0-1"]
[WhiteElo "2849"]
[BlackElo "3048"]
[TimeControl "180+1"]
[EndTime "8:59:04 PST"]
[Termination "Azerichess won on time"]

1. Nf3 {[%clk 0:03:00.9]} 1... d5 {[%clk 0:02:58.2]} 2. g3 {[%clk 0:03:01.1]}
2... g6 {[%clk 0:02:57.6]} 3. Bg2 {[%clk 0:02:58.9]} 3... Bg7 {[%clk 0:02:58]}
4. O-O {[%clk 0:02:59.6]} 4... Nf6 {[%clk 0:02:57.2]} 5. d3 {[%clk 0:02:58.7]}
5... O-O {[%clk 0:02:57.4]} 6. Nbd2 {[%clk 0:02:58.8]} 6... Nc6 {[%clk
0:02:56.1]} 7. c4 {[%clk 0:02:55.6]} 7... e5 {[%clk 0:02:54.5]} 8. cxd5 {[%clk
0:02:55.1]} 8... Nxd5 {[%clk 0:02:55.4]} 9. Nc4 {[%clk 0:02:50.3]} 9... Re8
{[%clk 0:02:55.1]} 10. Bd2 {[%clk 0:02:48.3]} 10... a5 {[%clk 0:02:54.3]} 11.
Rc1 {[%clk 0:02:47.5]} 11... h6 {[%clk 0:02:52.2]} 12. a3 {[%clk 0:02:32.7]}
12... e4 {[%clk 0:02:36.8]} 13. Ne1 {[%clk 0:02:20.3]} 13... exd3 {[%clk
0:02:24.8]} 14. Nxd3 {[%clk 0:02:21.2]} 14... a4 {[%clk 0:02:05.5]} 15. Ne3
{[%clk 0:02:10]} 15... Nb6 {[%clk 0:01:56]} 16. Bc3 {[%clk 0:01:58.2]} 16... Nd4
{[%clk 0:01:55.8]} 17. Re1 {[%clk 0:01:32.1]} 17... c6 {[%clk 0:01:50.4]} 18.
Rb1 {[%clk 0:01:04.9]} 18... h5 {[%clk 0:01:46.4]} 19. Nc2 {[%clk 0:01:04.9]}
19... Nb3 {[%clk 0:01:38.1]} 20. Bxg7 {[%clk 0:01:04.3]} 20... Kxg7 {[%clk
0:01:39]} 21. Ne3 {[%clk 0:00:59.7]} 21... Qf6 {[%clk 0:01:38.1]} 22. Qc2 {[%clk
0:00:54.2]} 22... Nd7 {[%clk 0:01:33.4]} 23. Rbd1 {[%clk 0:00:51.3]} 23... Ne5
{[%clk 0:01:31.9]} 24. Nxe5 {[%clk 0:00:48.8]} 24... Rxe5 {[%clk 0:01:32.8]} 25.
Nc4 {[%clk 0:00:49.1]} 25... Rc5 {[%clk 0:01:31.1]} 26. Qd3 {[%clk 0:00:43.6]}
26... Be6 {[%clk 0:01:26.7]} 27. Nb6 {[%clk 0:00:41.6]} 27... Re8 {[%clk
0:01:18.8]} 28. Nd7 {[%clk 0:00:41.4]} 28... Bxd7 {[%clk 0:01:14.4]} 29. Qxd7
{[%clk 0:00:42.3]} 29... Re7 {[%clk 0:01:11.7]} 30. Qd8 {[%clk 0:00:42.7]} 30...
Rc2 {[%clk 0:01:07.4]} 31. Rd7 {[%clk 0:00:38.7]} 31... Rexe2 {[%clk 0:00:51.9]}
32. Qxf6+ {[%clk 0:00:37.8]} 32... Kxf6 {[%clk 0:00:52.8]} 33. Rxe2 {[%clk
0:00:38.4]} 33... Rxe2 {[%clk 0:00:52.9]} 34. Bf1 {[%clk 0:00:28.9]} 34... Re7
{[%clk 0:00:43.7]} 35. Rd1 {[%clk 0:00:27.6]} 35... b5 {[%clk 0:00:39.9]} 36. f4
{[%clk 0:00:26.9]} 36... Re6 {[%clk 0:00:37.8]} 37. Kf2 {[%clk 0:00:26.7]} 37...
Ke7 {[%clk 0:00:38.4]} 38. f5 {[%clk 0:00:08]} 38... Rf6 {[%clk 0:00:35.9]} 39.
Bd3 {[%clk 0:00:07.8]} 39... Nd4 {[%clk 0:00:34.1]} 40. Re1+ {[%clk 0:00:07.9]}
40... Kd6 {[%clk 0:00:32.8]} 41. Rd1 {[%clk 0:00:07.2]} 41... Nxf5 {[%clk
0:00:29.5]} 42. Kf3 {[%clk 0:00:03.5]} 42... Nd4+ {[%clk 0:00:29.1]} 43. Ke4
{[%clk 0:00:03.9]} 43... Ne6 {[%clk 0:00:29.7]} 44. Bxb5+ {[%clk 0:00:03.3]}
44... Kc7 {[%clk 0:00:29.2]} 45. Bc4 {[%clk 0:00:03.5]} 45... Rf2 {[%clk
0:00:28.6]} 46. Bxe6 {[%clk 0:00:03.5]} 46... fxe6 {[%clk 0:00:29]} 47. h4
{[%clk 0:00:04.2]} 47... Rxb2 {[%clk 0:00:28.6]} 48. Rd4 {[%clk 0:00:04.8]}
48... Rb3 {[%clk 0:00:27.8]} 49. Rxa4 {[%clk 0:00:04.6]} 49... Rxg3 {[%clk
0:00:27.9]} 50. Ke5 {[%clk 0:00:05.2]} 50... Rg4 {[%clk 0:00:25.9]} 51. Ra7+
{[%clk 0:00:03.2]} 51... Kb6 {[%clk 0:00:26.2]} 52. Rg7 {[%clk 0:00:03.6]} 52...
c5 {[%clk 0:00:26.1]} 53. a4 {[%clk 0:00:04]} 53... c4 {[%clk 0:00:26.4]} 54.
Kxe6 {[%clk 0:00:03.5]} 54... c3 {[%clk 0:00:26.5]} 55. Rg8 {[%clk 0:00:02.8]}
55... Ka5 {[%clk 0:00:24.4]} 56. Rc8 {[%clk 0:00:02.7]} 56... Kb4 {[%clk
0:00:21.6]} 57. a5 {[%clk 0:00:03.3]} 57... Kxa5 {[%clk 0:00:18.6]} 58. Rxc3
{[%clk 0:00:03.3]} 58... Rxh4 {[%clk 0:00:19.2]} 59. Rb3 {[%clk 0:00:02.5]}
59... Rg4 {[%clk 0:00:18.4]} 60. Ke5 {[%clk 0:00:03.1]} 60... Ka4 {[%clk
0:00:18.7]} 61. Rb1 {[%clk 0:00:03.1]} 61... h4 {[%clk 0:00:19]} 62. Kf6 {[%clk
0:00:03.6]} 62... g5 {[%clk 0:00:19.5]} 63. Kf5 {[%clk 0:00:04.3]} 63... Rg3
{[%clk 0:00:20]} 64. Ke4 {[%clk 0:00:03.9]} 64... h3 {[%clk 0:00:20]} 65. Kd4
{[%clk 0:00:02.9]} 65... h2 {[%clk 0:00:16.6]} 66. Rh1 {[%clk 0:00:02.1]} 66...
Rg2 {[%clk 0:00:16.6]} 67. Ke3 {[%clk 0:00:01.5]} 67... g4 {[%clk 0:00:16.5]}
68. Kf4 {[%clk 0:00:02.1]} 68... g3 {[%clk 0:00:16.8]} 69. Rxh2 {[%clk
0:00:01.5]} 69... gxh2 {[%clk 0:00:16.6]} 0-1

[Event "Early-Titled-Tuesday-Blitz-November-28-2023"]
[Site "Chess.com"]
[Date "2023.11.28"]
[Round "5"]
[White "OhanyanEminChess"]
[Black "AlexPapasimakopoulos"]
[Result "0-1"]
[WhiteElo "2839"]
[BlackElo "2629"]
[TimeControl "180+1"]
[EndTime "8:59:08 PST"]
[Termination "AlexPapasimakopoulos won by resignation"]

1. e4 {[%clk 0:02:57.2]} 1... e6 {[%clk 0:02:59]} 2. d4 {[%clk 0:02:55.7]} 2...
d5 {[%clk 0:02:59.5]} 3. Nc3 {[%clk 0:02:56.4]} 3... Bb4 {[%clk 0:02:58.9]} 4.
e5 {[%clk 0:02:56.8]} 4... c5 {[%clk 0:02:59.1]} 5. Bd2 {[%clk 0:02:57.5]} 5...
Ne7 {[%clk 0:02:58.5]} 6. Nb5 {[%clk 0:02:55.1]} 6... Bxd2+ {[%clk 0:02:58.1]}
7. Qxd2 {[%clk 0:02:56]} 7... O-O {[%clk 0:02:58.4]} 8. c3 {[%clk 0:02:55.8]}
8... Nbc6 {[%clk 0:02:58]} 9. f4 {[%clk 0:02:56]} 9... Nf5 {[%clk 0:02:44.9]}
10. dxc5 {[%clk 0:02:21.6]} 10... f6 {[%clk 0:02:41.7]} 11. exf6 {[%clk
0:02:15.8]} 11... Qxf6 {[%clk 0:02:34.1]} 12. Nf3 {[%clk 0:02:15.3]} 12... a6
{[%clk 0:02:24.4]} 13. Na3 {[%clk 0:01:38.1]} 13... Nfe7 {[%clk 0:01:35.9]} 14.
g3 {[%clk 0:01:08.4]} 14... e5 {[%clk 0:01:35.9]} 15. Nxe5 {[%clk 0:01:09]}
15... Nxe5 {[%clk 0:01:35.8]} 16. fxe5 {[%clk 0:01:09.9]} 16... Qxe5+ {[%clk
0:01:35.9]} 17. Qe2 {[%clk 0:01:08.9]} 17... Qg5 {[%clk 0:01:33.5]} 18. Qd2
{[%clk 0:01:04.1]} 18... Qe5+ {[%clk 0:01:20.1]} 19. Qe2 {[%clk 0:00:56.6]}
19... Qc7 {[%clk 0:01:10.1]} 20. O-O-O {[%clk 0:00:53]} 20... Qxc5 {[%clk
0:01:06.8]} 21. Bg2 {[%clk 0:00:52.3]} 21... Bf5 {[%clk 0:01:02.7]} 22. Rhf1
{[%clk 0:00:34]} 22... Rae8 {[%clk 0:00:56.8]} 23. Qe5 {[%clk 0:00:25.9]} 23...
Be4 {[%clk 0:00:45.8]} 24. Rxf8+ {[%clk 0:00:24.8]} 24... Rxf8 {[%clk
0:00:44.7]} 25. Bxe4 {[%clk 0:00:08.9]} 25... Qe3+ {[%clk 0:00:44.4]} 26. Rd2
{[%clk 0:00:04.2]} 26... Rf1+ {[%clk 0:00:33.1]} 27. Kc2 {[%clk 0:00:03.1]}
27... Qxe4+ {[%clk 0:00:33.6]} 28. Qxe4 {[%clk 0:00:03.7]} 28... dxe4 {[%clk
0:00:34.5]} 29. Re2 {[%clk 0:00:03.6]} 29... Nd5 {[%clk 0:00:28.5]} 30. Rxe4
{[%clk 0:00:03.9]} 30... Rf2+ {[%clk 0:00:28.6]} 31. Kb3 {[%clk 0:00:04.6]}
31... Rxh2 {[%clk 0:00:28.7]} 32. c4 {[%clk 0:00:05.3]} 32... Nf6 {[%clk
0:00:24.8]} 33. Re7 {[%clk 0:00:05.9]} 33... Rh3 {[%clk 0:00:25]} 34. Rxb7
{[%clk 0:00:06.3]} 34... Rxg3+ {[%clk 0:00:25.1]} 35. Ka4 {[%clk 0:00:03.2]}
35... h5 {[%clk 0:00:24.7]} 36. c5 {[%clk 0:00:03.9]} 36... Rg4+ {[%clk
0:00:15.9]} 37. b4 {[%clk 0:00:04.3]} 37... Nd5 {[%clk 0:00:15.1]} 38. c6 {[%clk
0:00:02.4]} 38... h4 {[%clk 0:00:15]} 39. c7 {[%clk 0:00:02.5]} 39... Nxc7
{[%clk 0:00:11.7]} 40. Rxc7 {[%clk 0:00:03.4]} 40... h3 {[%clk 0:00:11.9]} 41.
Rc1 {[%clk 0:00:02.5]} 41... Rh4 {[%clk 0:00:11.9]} 42. Nc2 {[%clk 0:00:02.5]}
42... g5 {[%clk 0:00:11.4]} 43. Ne3 {[%clk 0:00:02.4]} 43... g4 {[%clk
0:00:11.5]} 44. Rh1 {[%clk 0:00:01.9]} 44... g3 {[%clk 0:00:11.1]} 45. Rg1
{[%clk 0:00:02.6]} 45... h2 {[%clk 0:00:08.8]} 46. Rh1 {[%clk 0:00:03.3]} 46...
Kf7 {[%clk 0:00:04.5]} 47. Ka5 {[%clk 0:00:03.1]} 47... Ke6 {[%clk 0:00:04.1]}
48. a3 {[%clk 0:00:03.2]} 48... Rh6 {[%clk 0:00:03.2]} 49. Kxa6 {[%clk
0:00:02.5]} 49... Ke5+ {[%clk 0:00:03.6]} 50. Ka5 {[%clk 0:00:02.7]} 50... Ke4
{[%clk 0:00:04.2]} 51. Ng4 {[%clk 0:00:02.6]} 51... Rh5+ {[%clk 0:00:04.1]} 52.
Ka4 {[%clk 0:00:02.3]} 52... Kf4 {[%clk 0:00:04.4]} 53. Nxh2 {[%clk 0:00:02.7]}
53... gxh2 {[%clk 0:00:02.1]} 54. b5 {[%clk 0:00:03.1]} 54... Ke5 {[%clk
0:00:02.7]} 55. Ka5 {[%clk 0:00:03.2]} 55... Kd6 {[%clk 0:00:03.4]} 56. Ka6
{[%clk 0:00:02.7]} 56... Kc7 {[%clk 0:00:03.9]} 57. a4 {[%clk 0:00:03.2]} 57...
Kb8 {[%clk 0:00:04.4]} 58. a5 {[%clk 0:00:02.9]} 58... Rh6+ {[%clk 0:00:04.8]}
59. b6 {[%clk 0:00:03.4]} 59... Rh5 {[%clk 0:00:04.3]} 60. Re1 {[%clk
0:00:02.5]} 60... Rh8 {[%clk 0:00:04.8]} 61. Rh1 {[%clk 0:00:02.8]} 61... Rh5
{[%clk 0:00:05.5]} 62. Rc1 {[%clk 0:00:01.9]} 62... h1=Q {[%clk 0:00:04.7]} 63.
Rxh1 {[%clk 0:00:02.3]} 63... Rxh1 {[%clk 0:00:05.6]} 64. Kb5 {[%clk 0:00:03.1]}
64... Rh5+ {[%clk 0:00:06.1]} 65. Ka6 {[%clk 0:00:03.6]} 65... Rg5 {[%clk
0:00:06.1]} 66. b7 {[%clk 0:00:03.9]} 66... Rg6+ {[%clk 0:00:06.6]} 0-1